[Event "15. Dobrovický rapid - Tereos TTD a.s. – open"]
[Site "Dobrovice, Czech Republic"]
[Date "2020.02.29"]
[Round "8.1"]
[White "Zwardon Vojtech"]
[Black "Kourousis Epaminondas"]
[Result "1-0"]
[TimeControl "15m + 3s / tah"]
[WhiteElo "2460"]
[BlackElo "2406"]

1. c4 {[%clk 00:15:04]} {[%emt 00:00:02]} e6 {[%clk 00:15:02]} {[%emt
00:00:04]} 2. Nc3 {[%clk 00:15:05]} {[%emt 00:00:02]} Bb4 {[%clk 00:14:41]}
{[%emt 00:00:24]} 3. g3 {[%clk 00:15:03]} {[%emt 00:00:06]} Nf6 {[%clk
00:14:31]} {[%emt 00:00:13]} 4. Bg2 {[%clk 00:15:04]} {[%emt 00:00:01]} d5
{[%clk 00:14:31]} {[%emt 00:00:02]} 5. Nf3 {[%clk 00:15:02]} {[%emt 00:00:05]}
O-O {[%clk 00:14:26]} {[%emt 00:00:09]} 6. O-O {[%clk 00:14:49]} {[%emt
00:00:16]} dxc4 {[%clk 00:11:23]} {[%emt 00:03:06]} 7. Qa4 {[%clk 00:14:38]}
{[%emt 00:00:14]} Nc6 {[%clk 00:11:14]} {[%emt 00:00:12]} 8. a3 {[%clk
00:14:36]} {[%emt 00:00:05]} Bd6 {[%clk 00:09:15]} {[%emt 00:02:03]} 9. Qxc4
{[%clk 00:13:56]} {[%emt 00:00:44]} e5 {[%clk 00:09:17]} 10. Qb3 {[%clk
00:13:36]} {[%emt 00:00:22]} Nd4 {[%clk 00:07:57]} {[%emt 00:01:24]} 11. Nxd4
{[%clk 00:13:31]} {[%emt 00:00:08]} exd4 {[%clk 00:07:59]} {[%emt 00:00:01]} 12.
Ne4 {[%clk 00:12:58]} {[%emt 00:00:34]} Nxe4 {[%clk 00:07:54]} {[%emt
00:00:10]} 13. Bxe4 {[%clk 00:12:59]} {[%emt 00:00:02]} Bh3 {[%clk 00:06:36]}
{[%emt 00:01:21]} 14. Re1 {[%clk 00:12:51]} {[%emt 00:00:10]} Rb8 {[%clk
00:04:53]} {[%emt 00:01:47]} 15. Qd3 {[%clk 00:12:52]} {[%emt 00:00:01]} f5
{[%clk 00:04:55]} {[%emt 00:00:01]} 16. Bd5+ {[%clk 00:12:43]} {[%emt
00:00:12]} Kh8 {[%clk 00:04:57]} {[%emt 00:00:01]} 17. Qxd4 {[%clk 00:12:44]}
{[%emt 00:00:02]} Bxg3 {[%clk 00:04:14]} {[%emt 00:00:46]} 18. hxg3 {[%clk
00:12:32]} {[%emt 00:00:15]} c6 {[%clk 00:04:16]} 19. b4 {[%clk 00:09:57]}
{[%emt 00:02:38]} cxd5 {[%clk 00:02:30]} {[%emt 00:01:50]} 20. Bb2 {[%clk
00:09:58]} {[%emt 00:00:01]} Qd7 {[%clk 00:02:32]} {[%emt 00:00:01]} 21. Kh2
{[%clk 00:09:41]} {[%emt 00:00:20]} Bg4 {[%clk 00:02:25]} {[%emt 00:00:10]} 22.
f3 {[%clk 00:09:42]} {[%emt 00:00:01]} Bh5 {[%clk 00:02:26]} {[%emt 00:00:02]}
23. Rac1 {[%clk 00:09:12]} {[%emt 00:00:33]} Rbe8 {[%clk 00:02:19]} {[%emt
00:00:11]} 24. Qf4 {[%clk 00:08:52]} {[%emt 00:00:22]} Rf7 {[%clk 00:02:09]}
{[%emt 00:00:14]} 25. Kg2 {[%clk 00:08:41]} {[%emt 00:00:14]} Rfe7 {[%clk
00:01:47]} {[%emt 00:00:24]} 26. Kf2 {[%clk 00:08:30]} {[%emt 00:00:14]} Bg6
{[%clk 00:01:49]} {[%emt 00:00:02]} 27. Bd4 {[%clk 00:08:17]} {[%emt 00:00:16]}
b6 {[%clk 00:01:47]} {[%emt 00:00:04]} 28. Rc3 {[%clk 00:08:10]} {[%emt
00:00:10]} Qe6 {[%clk 00:01:27]} {[%emt 00:00:23]} 29. e3 {[%clk 00:08:06]}
{[%emt 00:00:07]} Rc8 {[%clk 00:01:05]} {[%emt 00:00:24]} 30. Rec1 {[%clk
00:07:58]} {[%emt 00:00:12]} Rc4 {[%clk 00:00:42]} {[%emt 00:00:26]} 31. Rxc4
{[%clk 00:07:43]} {[%emt 00:00:18]} dxc4 {[%clk 00:00:44]} {[%emt 00:00:01]} 32.
Rxc4 {[%clk 00:07:44]} {[%emt 00:00:03]} h6 {[%clk 00:00:34]} {[%emt 00:00:13]}
33. Qxh6+ {[%clk 00:07:13]} {[%emt 00:00:34]} Kg8 {[%clk 00:00:36]} 34. Qh4
{[%clk 00:07:15]} Qxc4 {[%clk 00:00:30]} {[%emt 00:00:09]} 35. Qxe7 {[%clk
00:07:17]} {[%emt 00:00:01]} Qf7 {[%clk 00:00:27]} {[%emt 00:00:06]} 36. Qd8+
{[%clk 00:06:57]} {[%emt 00:00:22]} Kh7 {[%clk 00:00:26]} {[%emt 00:00:06]} 37.
Bc3 {[%clk 00:06:51]} {[%emt 00:00:09]} Bh5 {[%clk 00:00:20]} {[%emt 00:00:10]}
38. Qg5 {[%clk 00:06:24]} {[%emt 00:00:29]} Qg6 {[%clk 00:00:16]} {[%emt
00:00:07]} 39. Qh4 {[%emt 00:00:10]} Kg8 {[%emt 00:00:01]} 40. a4 {[%clk
00:06:10]} {[%emt 00:00:09]} Qf7 {[%clk 00:00:10]} {[%emt 00:00:12]} 41. a5
{[%clk 00:06:02]} {[%emt 00:00:11]} bxa5 {[%clk 00:00:11]} {[%emt 00:00:02]} 42.
bxa5 {[%clk 00:06:03]} {[%emt 00:00:02]} Bg6 {[%clk 00:00:07]} {[%emt
00:00:08]} 43. Qd4 {[%clk 00:05:49]} {[%emt 00:00:16]} a6 {[%clk 00:00:06]}
{[%emt 00:00:05]} 44. Qb6 {[%clk 00:05:34]} {[%emt 00:00:15]} Bh5 {[%clk
00:00:07]} {[%emt 00:00:05]} 45. Qxa6 {[%clk 00:05:19]} {[%emt 00:00:18]} Qd5
{[%clk 00:00:09]} {[%emt 00:00:01]} 46. Qe2 {[%clk 00:05:19]} {[%emt 00:00:03]}
Be8 {[%clk 00:00:06]} {[%emt 00:00:06]} 47. e4 {[%clk 00:05:16]} {[%emt
00:00:06]} fxe4 {[%clk 00:00:05]} {[%emt 00:00:05]} 48. Qxe4 {[%clk 00:05:18]}
{[%emt 00:00:01]} Qd7 {[%clk 00:00:04]} {[%emt 00:00:04]} 49. a6 {[%clk
00:05:11]} {[%emt 00:00:09]} Bf7 {[%clk 00:00:06]} 50. Qd4 {[%clk 00:05:08]}
{[%emt 00:00:06]} Bd5 {[%clk 00:00:08]} {[%emt 00:00:03]} 51. a7 {[%clk
00:05:06]} {[%emt 00:00:04]} Qf7 {[%clk 00:00:09]} {[%emt 00:00:01]} 52. f4
{[%clk 00:04:50]} {[%emt 00:00:20]} Kh7 {[%clk 00:00:12]} 53. g4 {[%clk
00:04:44]} {[%emt 00:00:09]} Ba8 {[%clk 00:00:05]} {[%emt 00:00:09]} 54. Kg3
{[%clk 00:04:40]} {[%emt 00:00:07]} Qb7 {[%clk 00:00:06]} {[%emt 00:00:02]} 55.
Qxg7+ {[%clk 00:04:31]} {[%emt 00:00:13]} Qxg7 {[%clk 00:00:08]} {[%emt
00:00:01]} 56. Bxg7 {[%clk 00:04:33]} Kxg7 {[%clk 00:00:10]} 57. f5 {[%clk
00:04:32]} {[%emt 00:00:04]} Kf7 {[%clk 00:00:04]} {[%emt 00:00:09]} 58. Kf4
{[%clk 00:04:34]} {[%emt 00:00:01]} Bb7 {[%clk 00:00:04]} {[%emt 00:00:03]} 59.
Ke4 {[%emt 00:00:05]} 1-0

[Event "15. Dobrovický rapid - Tereos TTD a.s. – open"]
[Site "Dobrovice, Czech Republic"]
[Date "2020.02.29"]
[Round "8.2"]
[White "Hosticka Frantisek"]
[Black "Plat Vojtech"]
[Result "0-1"]
[TimeControl "15m + 3s / tah"]
[WhiteElo "2106"]
[BlackElo "2553"]

1. e4 {[%clk 00:15:05]} {[%emt 00:02:44]} c5 {[%clk 00:15:04]} {[%emt
00:00:02]} 2. Nf3 {[%clk 00:15:07]} {[%emt 00:00:01]} Nc6 {[%clk 00:15:06]} 3.
Bb5 {[%clk 00:15:10]} g6 {[%clk 00:15:08]} {[%emt 00:00:02]} 4. O-O {[%clk
00:14:51]} {[%emt 00:00:21]} Bg7 {[%clk 00:15:09]} {[%emt 00:00:01]} 5. c3
{[%clk 00:13:02]} {[%emt 00:01:53]} Nf6 {[%clk 00:15:09]} {[%emt 00:00:03]} 6.
Re1 {[%clk 00:12:35]} {[%emt 00:00:30]} O-O {[%clk 00:15:09]} {[%emt 00:00:03]}
7. d4 {[%clk 00:11:59]} {[%emt 00:00:39]} cxd4 {[%clk 00:15:10]} 8. cxd4 {[%clk
00:12:02]} d5 {[%clk 00:15:12]} 9. e5 {[%clk 00:12:04]} Ne4 {[%clk 00:15:13]}
{[%emt 00:00:01]} 10. Bxc6 {[%clk 00:11:41]} {[%emt 00:00:27]} bxc6 {[%clk
00:15:14]} {[%emt 00:00:01]} 11. Nc3 {[%clk 00:11:41]} {[%emt 00:00:03]} Bf5
{[%clk 00:14:51]} {[%emt 00:00:27]} 12. Nh4 {[%clk 00:09:58]} {[%emt 00:01:46]}
Be6 {[%clk 00:12:31]} {[%emt 00:02:23]} 13. Na4 {[%clk 00:09:05]} {[%emt
00:00:56]} g5 {[%clk 00:12:26]} {[%emt 00:00:09]} 14. Nf3 {[%clk 00:08:56]}
{[%emt 00:00:11]} f6 {[%clk 00:12:26]} {[%emt 00:00:03]} 15. exf6 {[%clk
00:07:52]} {[%emt 00:01:06]} exf6 {[%clk 00:12:26]} {[%emt 00:00:03]} 16. Nc3
{[%clk 00:07:09]} {[%emt 00:00:47]} Bf5 {[%clk 00:12:25]} {[%emt 00:00:04]} 17.
Qa4 {[%clk 00:06:42]} {[%emt 00:00:30]} Qd7 {[%clk 00:11:59]} {[%emt 00:00:29]}
18. Nd2 {[%clk 00:05:52]} {[%emt 00:00:53]} Nxc3 {[%clk 00:11:59]} {[%emt
00:00:03]} 19. bxc3 {[%clk 00:05:53]} {[%emt 00:00:02]} Rfe8 {[%clk 00:11:50]}
{[%emt 00:00:12]} 20. Ba3 {[%clk 00:05:52]} {[%emt 00:00:04]} Bd3 {[%clk
00:11:50]} {[%emt 00:00:02]} 21. Nb3 {[%clk 00:05:29]} {[%emt 00:00:27]} Rxe1+
{[%clk 00:11:32]} {[%emt 00:00:21]} 22. Rxe1 {[%clk 00:05:30]} {[%emt
00:00:02]} Re8 {[%clk 00:11:34]} 23. Rc1 {[%clk 00:05:08]} {[%emt 00:00:25]}
Bb5 {[%clk 00:11:19]} {[%emt 00:00:18]} 24. Qa5 {[%clk 00:05:00]} {[%emt
00:00:11]} h5 {[%clk 00:11:07]} {[%emt 00:00:16]} 25. h3 {[%clk 00:04:46]}
{[%emt 00:00:17]} g4 {[%clk 00:10:56]} {[%emt 00:00:14]} 26. hxg4 {[%clk
00:04:33]} {[%emt 00:00:17]} Qxg4 {[%clk 00:10:46]} {[%emt 00:00:13]} 27. Qc7
{[%clk 00:02:47]} {[%emt 00:01:48]} h4 {[%clk 00:10:44]} {[%emt 00:00:05]} 28.
Na5 {[%clk 00:01:31]} {[%emt 00:01:19]} Bh6 {[%clk 00:10:15]} {[%emt 00:00:33]}
29. Ra1 {[%clk 00:00:53]} {[%emt 00:00:40]} Bf4 {[%clk 00:10:04]} {[%emt
00:00:14]} 0-1

[Event "15. Dobrovický rapid - Tereos TTD a.s. – open"]
[Site "Dobrovice, Czech Republic"]
[Date "2020.02.29"]
[Round "8.3"]
[White "Velicka Petr"]
[Black "Sorm Daniel"]
[Result "1-0"]
[TimeControl "15m + 3s / tah"]
[WhiteElo "2395"]
[BlackElo "2310"]

1. e4 {[%clk 00:15:05]} c5 {[%clk 00:15:00]} {[%emt 00:00:06]} 2. Nf3 {[%clk
00:15:07]} Nc6 {[%clk 00:15:02]} {[%emt 00:00:02]} 3. Bb5 {[%clk 00:15:09]}
{[%emt 00:00:01]} d6 {[%clk 00:15:05]} 4. Bxc6+ {[%clk 00:15:10]} {[%emt
00:00:02]} bxc6 {[%clk 00:15:07]} {[%emt 00:00:01]} 5. e5 {[%clk 00:15:12]} Ba6
{[%clk 00:14:03]} {[%emt 00:01:07]} 6. d3 {[%clk 00:14:54]} {[%emt 00:00:21]}
c4 {[%clk 00:13:27]} {[%emt 00:00:39]} 7. d4 {[%clk 00:14:49]} {[%emt
00:00:08]} e6 {[%clk 00:11:03]} {[%emt 00:02:28]} 8. Nc3 {[%clk 00:14:24]}
{[%emt 00:00:28]} d5 {[%clk 00:10:44]} {[%emt 00:00:22]} 9. Ng5 {[%clk
00:13:26]} {[%emt 00:01:00]} h6 {[%clk 00:09:53]} {[%emt 00:00:55]} 10. Qh5
{[%clk 00:13:24]} {[%emt 00:00:05]} g6 {[%clk 00:09:45]} {[%emt 00:00:11]} 11.
Qh3 {[%clk 00:13:05]} {[%emt 00:00:21]} Bg7 {[%clk 00:08:49]} {[%emt 00:00:59]}
12. Nf3 {[%clk 00:12:37]} {[%emt 00:00:31]} Ne7 {[%clk 00:07:49]} {[%emt
00:01:04]} 13. Ne2 {[%clk 00:12:29]} {[%emt 00:00:10]} c5 {[%clk 00:06:00]}
{[%emt 00:01:53]} 14. c3 {[%clk 00:12:25]} {[%emt 00:00:06]} Nc6 {[%clk
00:05:41]} {[%emt 00:00:21]} 15. O-O {[%clk 00:11:21]} {[%emt 00:01:08]} cxd4
{[%clk 00:05:31]} {[%emt 00:00:13]} 16. Nexd4 {[%clk 00:10:35]} {[%emt
00:00:48]} Nxd4 {[%clk 00:05:16]} {[%emt 00:00:18]} 17. Nxd4 {[%clk 00:10:29]}
{[%emt 00:00:10]} Qd7 {[%clk 00:03:56]} {[%emt 00:01:24]} 18. Re1 {[%clk
00:09:57]} {[%emt 00:00:34]} h5 {[%clk 00:03:45]} {[%emt 00:00:15]} 19. Bg5
{[%clk 00:09:49]} {[%emt 00:00:10]} Rb8 {[%clk 00:03:35]} {[%emt 00:00:13]} 20.
Re2 {[%clk 00:09:40]} {[%emt 00:00:12]} O-O {[%clk 00:03:29]} {[%emt 00:00:09]}
21. Qh4 {[%clk 00:09:24]} {[%emt 00:00:19]} Rb7 {[%clk 00:03:23]} {[%emt
00:00:09]} 22. Rae1 {[%clk 00:07:15]} {[%emt 00:02:12]} Rfb8 {[%clk 00:03:22]}
{[%emt 00:00:03]} 23. Bc1 {[%clk 00:07:17]} {[%emt 00:00:01]} Bb5 {[%clk
00:02:34]} {[%emt 00:00:52]} 24. h3 {[%clk 00:07:05]} {[%emt 00:00:15]} Qe7
{[%clk 00:02:17]} {[%emt 00:00:19]} 25. Bg5 {[%clk 00:06:34]} {[%emt 00:00:33]}
Qf8 {[%clk 00:02:15]} {[%emt 00:00:05]} 26. Rd2 {[%clk 00:06:30]} {[%emt
00:00:07]} Be8 {[%clk 00:01:51]} {[%emt 00:00:28]} 27. Ree2 {[%clk 00:06:31]}
{[%emt 00:00:02]} Bh6 {[%clk 00:01:44]} {[%emt 00:00:10]} 28. f4 {[%clk
00:06:15]} {[%emt 00:00:19]} Bxg5 {[%clk 00:01:17]} {[%emt 00:00:30]} 29. Qxg5
{[%clk 00:06:16]} {[%emt 00:00:01]} Qe7 {[%clk 00:01:11]} {[%emt 00:00:09]} 30.
Qxe7 {[%clk 00:06:07]} {[%emt 00:00:12]} Rxe7 {[%clk 00:01:13]} {[%emt
00:00:01]} 31. g4 {[%clk 00:06:09]} {[%emt 00:00:01]} hxg4 {[%clk 00:00:57]}
{[%emt 00:00:19]} 32. hxg4 {[%clk 00:06:10]} {[%emt 00:00:01]} Reb7 {[%clk
00:00:59]} {[%emt 00:00:01]} 33. g5 {[%clk 00:06:08]} {[%emt 00:00:05]} Kf8
{[%clk 00:00:48]} {[%emt 00:00:14]} 34. Kf2 {[%clk 00:06:03]} {[%emt 00:00:07]}
Ke7 {[%clk 00:00:49]} {[%emt 00:00:02]} 35. Ke3 {[%clk 00:06:06]} Ba4 {[%clk
00:00:43]} {[%emt 00:00:09]} 36. Rh2 {[%clk 00:06:07]} {[%emt 00:00:02]} Be8
{[%clk 00:00:43]} {[%emt 00:00:03]} 37. Nf3 {[%clk 00:05:54]} {[%emt 00:00:16]}
a5 {[%clk 00:00:38]} {[%emt 00:00:09]} 38. Kd4 {[%clk 00:05:48]} {[%emt
00:00:09]} a4 {[%clk 00:00:38]} {[%emt 00:00:02]} 39. a3 {[%clk 00:05:47]}
{[%emt 00:00:04]} Rb6 {[%clk 00:00:32]} {[%emt 00:00:10]} 40. Ke3 {[%clk
00:04:50]} {[%emt 00:01:00]} R6b7 {[%clk 00:00:29]} {[%emt 00:00:06]} 41. Rhf2
{[%clk 00:04:33]} {[%emt 00:00:20]} Bd7 {[%clk 00:00:30]} {[%emt 00:00:03]} 42.
Rg2 {[%clk 00:04:24]} {[%emt 00:00:12]} Be8 {[%clk 00:00:31]} {[%emt 00:00:01]}
43. Nh2 {[%clk 00:04:22]} {[%emt 00:00:05]} Bc6 {[%clk 00:00:30]} {[%emt
00:00:05]} 44. Kd4 {[%clk 00:04:20]} {[%emt 00:00:05]} Rh8 {[%clk 00:00:24]}
{[%emt 00:00:09]} 45. Ng4 {[%clk 00:04:11]} {[%emt 00:00:12]} Rh4 {[%clk
00:00:27]} 46. Rdf2 {[%clk 00:04:06]} {[%emt 00:00:07]} Rb8 {[%clk 00:00:29]}
{[%emt 00:00:01]} 47. Rg1 {[%clk 00:03:51]} {[%emt 00:00:18]} Rbh8 {[%clk
00:00:24]} {[%emt 00:00:08]} 48. Nf6 {[%clk 00:03:45]} {[%emt 00:00:08]} Rh3
{[%clk 00:00:20]} {[%emt 00:00:07]} 49. Rd1 {[%clk 00:03:28]} {[%emt 00:00:20]}
R8h4 {[%clk 00:00:18]} {[%emt 00:00:06]} 50. Kc5 {[%clk 00:03:28]} {[%emt
00:00:03]} Be8 {[%clk 00:00:19]} {[%emt 00:00:02]} 51. Rd4 {[%clk 00:03:23]}
{[%emt 00:00:08]} Rd3 {[%emt 00:00:08]} 52. Kb4 {[%clk 00:02:46]} {[%emt
00:00:39]} Rxd4 {[%clk 00:00:15]} {[%emt 00:00:03]} 53. cxd4 {[%clk 00:02:47]}
{[%emt 00:00:02]} Rh3 {[%clk 00:00:17]} {[%emt 00:00:01]} 54. Rc2 {[%clk
00:02:26]} {[%emt 00:00:24]} Rf3 {[%clk 00:00:12]} {[%emt 00:00:08]} 55. Rh2
{[%clk 00:02:24]} {[%emt 00:00:06]} Rxf4 {[%clk 00:00:12]} {[%emt 00:00:03]} 56.
Kc5 {[%clk 00:02:22]} {[%emt 00:00:04]} Rf5 {[%clk 00:00:11]} {[%emt 00:00:05]}
57. Rh8 {[%clk 00:02:23]} Bd7 {[%clk 00:00:13]} {[%emt 00:00:01]} 58. Ra8
{[%clk 00:02:24]} {[%emt 00:00:02]} Rxg5 {[%clk 00:00:06]} {[%emt 00:00:10]} 59.
Ra7 {[%clk 00:02:25]} {[%emt 00:00:01]} Rg2 {[%clk 00:00:08]} {[%emt 00:00:02]}
60. Rxd7+ {[%clk 00:02:25]} {[%emt 00:00:03]} Kf8 {[%clk 00:00:10]} 61. Rb7
{[%clk 00:02:24]} {[%emt 00:00:04]} Rc2 {[%clk 00:00:09]} {[%emt 00:00:04]} 62.
Kd6 {[%clk 00:02:21]} {[%emt 00:00:06]} g5 {[%clk 00:00:09]} {[%emt 00:00:03]}
63. Rb8+ {[%clk 00:01:30]} {[%emt 00:00:54]} Kg7 {[%clk 00:00:12]} 64. Ke7
{[%clk 00:01:32]} {[%emt 00:00:01]} Kg6 {[%clk 00:00:13]} {[%emt 00:00:02]} 65.
Rb4 {[%clk 00:00:50]} {[%emt 00:00:44]} Rd2 {[%clk 00:00:07]} {[%emt 00:00:09]}
66. Rxa4 {[%clk 00:00:52]} {[%emt 00:00:02]} Rxd4 {[%clk 00:00:09]} {[%emt
00:00:01]} 67. Ra8 {[%clk 00:00:53]} {[%emt 00:00:02]} Rd2 {[%clk 00:00:11]}
{[%emt 00:00:02]} 68. Rb8 {[%clk 00:00:49]} {[%emt 00:00:06]} d4 {[%clk
00:00:09]} {[%emt 00:00:05]} 69. a4 {[%clk 00:00:50]} {[%emt 00:00:02]} d3
{[%clk 00:00:08]} {[%emt 00:00:04]} 70. Rb4 {[%clk 00:00:38]} {[%emt 00:00:15]}
Rxb2 {[%clk 00:00:10]} {[%emt 00:00:02]} 71. Rxc4 {[%clk 00:00:40]} d2 {[%clk
00:00:11]} {[%emt 00:00:02]} 72. Rd4 {[%clk 00:00:42]} Kf5 {[%clk 00:00:10]}
{[%emt 00:00:04]} 73. Kxf7 {[%clk 00:00:28]} {[%emt 00:00:17]} Kxe5 {[%clk
00:00:10]} {[%emt 00:00:04]} 74. Rd3 {[%clk 00:00:25]} {[%emt 00:00:06]} Ra2
{[%clk 00:00:10]} {[%emt 00:00:03]} 75. Kg6 {[%clk 00:00:24]} {[%emt 00:00:03]}
d1=Q 76. Rxd1 {[%clk 00:00:26]} Rxa4 {[%clk 00:00:08]} {[%emt 00:00:01]} 77.
Nd7+ {[%clk 00:00:22]} {[%emt 00:00:06]} Kf4 {[%clk 00:00:09]} {[%emt
00:00:03]} 78. Rf1+ {[%clk 00:00:24]} {[%emt 00:00:01]} Ke3 {[%clk 00:00:07]}
{[%emt 00:00:04]} 79. Kxg5 {[%clk 00:00:26]} {[%emt 00:00:03]} Ke2 {[%clk
00:00:06]} {[%emt 00:00:04]} 80. Rb1 {[%clk 00:00:28]} Ra5+ {[%clk 00:00:05]}
{[%emt 00:00:05]} 81. Kf4 {[%clk 00:00:29]} {[%emt 00:00:01]} Rd5 {[%clk
00:00:04]} {[%emt 00:00:03]} 82. Ne5 {[%clk 00:00:31]} {[%emt 00:00:02]} Kd2
{[%clk 00:00:04]} {[%emt 00:00:03]} 83. Nf3+ {[%clk 00:00:32]} {[%emt
00:00:02]} Kc2 {[%clk 00:00:05]} {[%emt 00:00:02]} 84. Rb8 {[%clk 00:00:33]}
{[%emt 00:00:01]} e5+ {[%clk 00:00:06]} {[%emt 00:00:02]} 85. Ke3 {[%clk
00:00:35]} Rd3+ {[%clk 00:00:08]} {[%emt 00:00:01]} 86. Ke2 {[%clk 00:00:37]}
{[%emt 00:00:01]} Rc3 {[%clk 00:00:09]} {[%emt 00:00:02]} 87. Ne1+ {[%clk
00:00:36]} {[%emt 00:00:04]} Kc1 {[%clk 00:00:12]} {[%emt 00:00:01]} 88. Nd3+
{[%clk 00:00:37]} {[%emt 00:00:01]} Kc2 {[%clk 00:00:14]} 89. Rb2# {[%emt
00:00:02]} Kd2 90. Kxd2 1-0

[Event "15. Dobrovický rapid - Tereos TTD a.s. – open"]
[Site "Dobrovice, Czech Republic"]
[Date "2020.02.29"]
[Round "8.4"]
[White "Postupa Pavel ml."]
[Black "Suran Jan"]
[Result "1/2-1/2"]
[TimeControl "15m + 3s / tah"]
[WhiteElo "2164"]
[BlackElo "2335"]

1. e4 {[%clk 00:15:04]} {[%emt 00:00:02]} c5 {[%clk 00:15:05]} {[%emt
00:00:01]} 2. Nf3 {[%clk 00:15:05]} {[%emt 00:00:02]} e6 {[%clk 00:15:06]}
{[%emt 00:00:02]} 3. g3 {[%clk 00:15:07]} {[%emt 00:00:01]} Nc6 {[%clk
00:15:06]} {[%emt 00:00:03]} 4. Bg2 {[%clk 00:15:09]} Nf6 {[%clk 00:15:08]}
{[%emt 00:00:01]} 5. Qe2 {[%clk 00:15:11]} {[%emt 00:00:01]} e5 {[%clk
00:14:44]} {[%emt 00:00:27]} 6. O-O {[%clk 00:15:10]} {[%emt 00:00:04]} Be7
{[%clk 00:14:46]} 7. d3 {[%clk 00:14:58]} {[%emt 00:00:15]} O-O {[%clk
00:14:40]} {[%emt 00:00:09]} 8. Nc3 {[%clk 00:14:55]} {[%emt 00:00:06]} d6
{[%clk 00:14:35]} {[%emt 00:00:08]} 9. h3 {[%clk 00:14:55]} {[%emt 00:00:04]}
Nd4 {[%clk 00:14:20]} {[%emt 00:00:18]} 10. Nxd4 {[%clk 00:14:51]} {[%emt
00:00:07]} cxd4 {[%clk 00:14:21]} {[%emt 00:00:01]} 11. Nd1 {[%clk 00:14:46]}
{[%emt 00:00:08]} g6 {[%clk 00:11:31]} {[%emt 00:02:54]} 12. f4 {[%clk
00:14:45]} {[%emt 00:00:04]} Nh5 {[%clk 00:11:09]} {[%emt 00:00:25]} 13. Kh2
{[%clk 00:14:26]} {[%emt 00:00:22]} exf4 {[%clk 00:10:54]} {[%emt 00:00:19]} 14.
gxf4 {[%clk 00:14:04]} {[%emt 00:00:24]} Bh4 {[%clk 00:09:19]} {[%emt
00:01:38]} 15. Rf3 {[%clk 00:14:05]} {[%emt 00:00:02]} f5 {[%clk 00:08:49]}
{[%emt 00:00:33]} 16. c3 {[%clk 00:14:01]} {[%emt 00:00:06]} dxc3 {[%clk
00:08:14]} {[%emt 00:00:39]} 17. Nxc3 {[%clk 00:14:01]} {[%emt 00:00:03]} Be6
{[%clk 00:08:12]} {[%emt 00:00:04]} 18. Be3 {[%clk 00:13:51]} {[%emt 00:00:13]}
Qd7 {[%clk 00:08:11]} {[%emt 00:00:04]} 19. Bf2 {[%clk 00:12:56]} {[%emt
00:00:57]} fxe4 {[%clk 00:06:48]} {[%emt 00:01:25]} 20. Qxe4 {[%clk 00:12:25]}
{[%emt 00:00:35]} Nf6 {[%clk 00:06:17]} {[%emt 00:00:34]} 21. Qd4 {[%clk
00:12:10]} {[%emt 00:00:17]} Bxf2 22. Rxf2 {[%clk 00:12:11]} a6 {[%clk
00:04:48]} {[%emt 00:01:33]} 23. Re1 {[%clk 00:12:02]} {[%emt 00:00:12]} Rae8
{[%clk 00:04:45]} {[%emt 00:00:07]} 24. a3 {[%clk 00:11:50]} {[%emt 00:00:15]}
Re7 {[%clk 00:04:03]} {[%emt 00:00:46]} 25. Ne4 {[%clk 00:11:47]} {[%emt
00:00:05]} Nxe4 {[%clk 00:04:00]} {[%emt 00:00:06]} 26. dxe4 {[%clk 00:11:47]}
{[%emt 00:00:02]} Qc7 {[%clk 00:03:42]} {[%emt 00:00:21]} 27. Rd1 {[%clk
00:11:13]} {[%emt 00:00:38]} Rd7 {[%clk 00:02:57]} {[%emt 00:00:47]} 28. f5
{[%clk 00:10:18]} {[%emt 00:00:58]} d5+ {[%clk 00:01:58]} {[%emt 00:01:02]} 29.
e5 {[%clk 00:10:20]} {[%emt 00:00:01]} Rxf5 {[%clk 00:01:54]} {[%emt 00:00:07]}
30. Rxf5 {[%clk 00:10:13]} {[%emt 00:00:10]} gxf5 {[%clk 00:01:44]} {[%emt
00:00:13]} 31. Rd3 {[%clk 00:10:10]} {[%emt 00:00:06]} Qd8 {[%clk 00:01:14]}
{[%emt 00:00:33]} 32. Qf4 {[%clk 00:08:30]} {[%emt 00:01:43]} Qf8 {[%clk
00:00:56]} {[%emt 00:00:22]} 33. Rc3 {[%clk 00:06:57]} {[%emt 00:01:36]} Rg7
{[%clk 00:00:46]} {[%emt 00:00:13]} 34. Qd4 {[%clk 00:06:41]} {[%emt 00:00:18]}
Qd8 {[%clk 00:00:47]} {[%emt 00:00:01]} 35. Rc5 {[%clk 00:06:38]} {[%emt
00:00:06]} Qg5 {[%clk 00:00:44]} {[%emt 00:00:06]} 36. Qf2 {[%clk 00:05:46]}
{[%emt 00:00:55]} f4 {[%clk 00:00:47]} 37. Bxd5 {[%clk 00:05:40]} {[%emt
00:00:09]} Qxe5 {[%clk 00:00:47]} {[%emt 00:00:03]} 38. Bxe6+ {[%clk 00:05:07]}
{[%emt 00:00:36]} Qxe6 {[%clk 00:00:49]} {[%emt 00:00:01]} 39. Qc2 {[%clk
00:05:02]} {[%emt 00:00:08]} Re7 {[%clk 00:00:22]} {[%emt 00:00:30]} 40. Rc8+
{[%clk 00:04:49]} {[%emt 00:00:16]} Re8 {[%clk 00:00:23]} {[%emt 00:00:03]} 41.
Qg2+ {[%clk 00:04:32]} {[%emt 00:00:19]} Kh8 {[%clk 00:00:16]} {[%emt
00:00:09]} 1/2-1/2